fUSD/lending_fUSD_20260416
["ID","MTS","AMOUNT","RATE_DAILY","PERIOD"]
[420597894,1776297049279,-459.08415941,0.000145,4]
[420597895,1776297049289,-229.54207971,0.000145,4]
[420597896,1776297049299,-234.39931479,0.000145,4]
[420597897,1776297049310,-1000.0,0.00014524,2]
[420597898,1776297049320,-20754.72068,0.00014535,2]
[420597899,1776297049329,-5888.0,0.00014544,2]
[420597900,1776297049339,-5888.0,0.00014577,2]
[420597901,1776297049348,-418.0,0.00014589,2]
[420597902,1776297049358,-679.0,0.00014606,5]
[420597903,1776297049367,-321.68208,0.00014606,2]
[420597904,1776297049376,-321.68208,0.00014606,2]
[420597905,1776297049386,-321.68208,0.00014606,2]
[420597906,1776297049395,-321.68208,0.00014606,2]
[420597907,1776297049404,-5888.0,0.00014606,2]
[420597908,1776297049415,-1000.0,0.00014622,2]
[420597909,1776297049424,-500.0,0.0001464,2]
[420597910,1776297049434,-151.0,0.00014655,2]
[420597911,1776297049443,-151.0,0.00014655,2]
[420597912,1776297049452,-209.622494,0.00014655,2]
[420597913,1776297049461,-209.622494,0.00014655,2]
[420597914,1776297049471,-209.622494,0.00014655,2]
[420597915,1776297049481,-6705.04,0.00014655,2]
[420597916,1776297049491,-2422.86,0.00014655,2]
[420597917,1776297049501,-500.0,0.00014659,2]
[420597918,1776297049511,-500.0,0.00014659,2]
[420597919,1776297049521,-504.12223561,0.00014659,2]
[420597920,1776297049531,-500.0,0.00014659,2]
[420597921,1776297049541,-782.45,0.00014659,2]
[420597922,1776297049551,-2815.0,0.0001466,2]
[420597923,1776297049561,-715.537852,0.0001466,2]
[420597924,1776297049571,-715.537852,0.0001466,2]
[420597925,1776297049580,-715.537852,0.0001466,2]
[420597926,1776297049590,-715.537852,0.0001466,2]
[420597927,1776297049600,-1099.64356121,0.00014686,2]
[420597928,1776297049609,-6918.2912817,0.0001469,2]
[420597929,1776297049619,-622.85,0.00014693,2]
[420597930,1776297049628,-500.0,0.00014693,2]
[420597931,1776297049638,-234.822704,0.00014694,2]
[420597932,1776297049647,-234.822704,0.00014694,2]
[420597933,1776297049657,-234.822704,0.00014694,2]
[420597934,1776297049666,-234.822704,0.00014694,2]
[420597935,1776297049676,-307.425473,0.00014694,2]
[420597936,1776297049685,-307.425473,0.00014694,2]
[420597937,1776297049694,-307.425473,0.00014694,2]
[420597938,1776297049704,-307.425473,0.00014694,2]
[420597939,1776297049713,-5888.0,0.00014694,2]
[420597940,1776297049723,-151.0,0.00014718,2]
[420597941,1776297049732,-151.0,0.00014718,2]
[420597942,1776297049742,-151.0,0.00014718,2]
[420597943,1776297049751,-151.0,0.00014718,2]
[420597944,1776297049761,-151.0,0.00014718,2]
[420597945,1776297049770,-151.0,0.00014718,2]
[420597946,1776297049780,-151.0,0.00014718,2]
[420597947,1776297049789,-151.0,0.00014718,2]
[420597948,1776297049798,-151.0,0.00014718,2]
[420597949,1776297049808,-151.0,0.00014718,2]
[420597950,1776297049817,-151.0,0.00014718,2]
[420597951,1776297049826,-151.0,0.00014718,2]
[420597952,1776297049836,-151.0,0.00014718,2]
[420597953,1776297049845,-151.0,0.00014718,2]
[420597954,1776297049855,-151.0,0.00014718,2]
[420597955,1776297049864,-151.0,0.00014718,2]
[420597956,1776297049874,-151.0,0.00014718,2]
[420597957,1776297049885,-151.0,0.00014718,2]
[420597958,1776297049894,-151.0,0.00014718,2]
[420597959,1776297049903,-151.0,0.00014718,2]
[420597960,1776297049913,-151.0,0.00014718,2]
[420597961,1776297049923,-151.0,0.00014718,2]
[420597962,1776297049932,-151.0,0.00014718,2]
[420597963,1776297049942,-151.0,0.00014718,2]
[420597964,1776297049951,-151.0,0.00014718,2]
[420597965,1776297049961,-191.91298748,0.0001472,2]
[420597966,1776297049971,-1930.54840595,0.00014749,2]
[420597967,1776297049981,-2767.0,0.00014765,2]
[420597968,1776297049990,-500.0,0.00014794,2]
[420597969,1776297050000,-200.0,0.00014795,3]
[420597970,1776297050010,-325.22,0.00014795,3]
[420597971,1776297050019,-1500.0,0.00014795,2]
[420597972,1776297050029,-1000.0,0.00014795,2]
[420597973,1776297050040,-1000.0,0.00014795,2]
[420597974,1776297050050,-600.25687957,0.00014795,2]
[420597975,1776297050061,-1500.0,0.00014795,2]
[420597976,1776297050071,-1500.0,0.00014795,2]
[420597977,1776297050081,-1500.0,0.00014795,2]
[420597978,1776297050091,-1500.0,0.00014795,2]
[420597979,1776297050101,-1335.60917899,0.00014795,2]
[420597980,1776297050110,-151.0,0.00014795,2]
[420597981,1776297050120,-173.0,0.00014795,2]
[420597982,1776297050130,-1000.0,0.00014803,2]
[420597983,1776297050139,-150.0,0.00014841,7]
[420597984,1776297050149,-219.0,0.0001485,2]
[420597985,1776297050159,-151.0,0.0001485,2]
[420597986,1776297050168,-151.0,0.0001485,2]
[420597987,1776297050178,-151.0,0.0001485,2]
[420597988,1776297050188,-151.0,0.0001485,2]
[420597989,1776297050197,-151.0,0.0001485,2]
[420597990,1776297050208,-151.0,0.0001485,2]
[420597991,1776297050218,-151.0,0.0001485,2]
[420597992,1776297050227,-151.0,0.0001485,2]
[420597993,1776297050446,-151.0,0.0001485,2]
[420597994,1776297050456,-151.0,0.0001485,2]
[420597995,1776297050466,-151.0,0.0001485,2]
[420597996,1776297050475,-398.119,0.000149,2]
[420597997,1776297050484,-5600.0,0.000149,5]
[420597998,1776297050493,-4288.09785217,0.000149,2]
[420597999,1776297050502,-1500.0,0.00014915,2]
[420598000,1776297050512,-659.0,0.00014975,2]
[420598001,1776297050521,-265.0,0.0001498,2]
[420598002,1776297050531,-162.0,0.0001498,2]
[420598003,1776297050539,-6199.20961518,0.00014994,2]
[420598004,1776297050549,-165.9635,0.00015,2]
[420598005,1776297050558,-302.85,0.00015,2]
[420598006,1776297050567,-200.0,0.00015,2]
[420598007,1776297050576,-200.0,0.00015,2]
[420598008,1776297050585,-200.0,0.00015,2]
[420598009,1776297050594,-213.6,0.00015,2]
[420598010,1776297050603,-600.0,0.00015,2]
[420598011,1776297050612,-600.0,0.00015,2]
[420598012,1776297050621,-300.58448038,0.00015,2]
[420598013,1776297050631,-200.0,0.00015,2]
[420598014,1776297050640,-261.3,0.00015,2]
[420598015,1776297050649,-648.14,0.00015,2]
[420598016,1776297050658,-221.81,0.00015,2]
[420598017,1776297050667,-300.0,0.00015,2]
[420598018,1776297050677,-761.0,0.00015,2]
[420598019,1776297050686,-505.0,0.00015,2]
[420598020,1776297050695,-1450.0,0.00015,2]
[420598021,1776297050705,-153.0,0.00015004,3]
[420598022,1776297050714,-150.0,0.0001504,2]
[420598023,1776297050723,-220.81035114,0.00015047,2]
[420598024,1776297050732,-1543.6794416,0.00015059,2]
[420598025,1776297050741,-150.0,0.00015066,2]
[420598026,1776297050751,-269.0,0.00015068,2]
[420598027,1776297050760,-1465.99,0.00015068,2]
[420598028,1776297050769,-900.0,0.00015068,2]
[420598029,1776297050779,-623.938897,0.00015068,2]
[420598030,1776297050788,-623.938897,0.00015068,2]
[420598031,1776297050797,-623.938897,0.00015068,2]
[420598032,1776297050806,-623.938897,0.00015068,2]
[420598033,1776297050816,-623.938897,0.00015068,2]
[420598034,1776297050825,-623.938897,0.00015068,2]
[420598035,1776297050834,-623.938897,0.00015068,2]
[420598036,1776297050843,-623.938897,0.00015068,2]
[420598037,1776297050853,-623.938897,0.00015068,2]
[420598038,1776297050862,-623.938897,0.00015068,2]
[420598039,1776297050871,-623.938897,0.00015068,2]
[420598040,1776297050880,-623.938897,0.00015068,2]
[420598041,1776297050890,-800.0,0.00015068,2]
[420598042,1776297050899,-1000.0,0.00015114,2]
[420598043,1776297050908,-19702.13329953,0.00015122,2]
[420598044,1776297050918,-6742.59821864,0.00015122,2]
[420598045,1776297050927,-5888.0,0.00015123,2]
[420598046,1776297050936,-1575.0,0.0001513,2]
[420598047,1776297050946,-2600.0,0.0001513,2]
[420598048,1776297050955,-500.0,0.0001513,2]
[420598049,1776297050964,-5888.0,0.00015143,2]
[420598050,1776297050974,-504.0,0.00015205,3]
[420598051,1776297050983,-1117.52713433,0.00015235,2]
[420598052,1776297050993,-1000.0,0.00015246,2]
[420598053,1776297051002,-500.0,0.00015273,2]
[420598054,1776297051011,-500.0,0.00015273,2]
[420598055,1776297051021,-407.01801888,0.0001529,2]
[420598056,1776297051030,-666.0,0.00015299,2]
[420598057,1776297051039,-300.0,0.00015299,2]
[420598058,1776297051048,-725.9022563,0.00015299,2]
[420598059,1776297051058,-500.0,0.00015299,2]
[420598060,1776297051067,-377.39852235,0.00015299,2]
[420598061,1776297051076,-500.0,0.00015299,2]
[420598062,1776297051087,-500.0,0.00015299,2]
[420598063,1776297051096,-500.0,0.00015299,2]
[420598064,1776297051106,-500.0,0.00015299,2]
[420598065,1776297051115,-500.0,0.00015299,2]
[420598066,1776297051125,-500.0,0.00015299,2]
[420598067,1776297051134,-666.0,0.00015299,2]
[420598068,1776297051144,-819.4,0.00015299,2]
[420598069,1776297051153,-819.4,0.00015299,2]
[420598070,1776297051162,-819.4,0.00015299,2]
[420598071,1776297051171,-454.04008591,0.00015299,2]
[420598072,1776297051180,-782.45,0.00015299,2]
[420598073,1776297051190,-782.45,0.00015299,2]
[420598074,1776297051200,-782.45,0.00015299,2]
[420598075,1776297051209,-622.85,0.00015299,2]
[420598076,1776297051219,-622.85,0.00015299,2]
[420598077,1776297051228,-622.85,0.00015299,2]
[420598078,1776297051237,-500.0,0.00015299,2]
[420598079,1776297051246,-500.0,0.00015299,2]
[420598080,1776297051255,-500.0,0.00015299,2]
[420598081,1776297051265,-500.0,0.00015299,2]
[420598082,1776297051274,-500.0,0.00015299,2]
[420598083,1776297051283,-173.0,0.00015299,2]
[420598084,1776297051293,-440975.30933569,0.000153,2]
[420598085,1776297051302,-152375.06816669,0.000153,2]
[420598086,1776297051311,-1157.11899574,0.000153,2]
[420598087,1776297051320,-151.0,0.000153,2]
[420598088,1776297051329,-715.537852,0.000153,2]
[420598089,1776297051338,-715.537852,0.000153,2]
[420598090,1776297051348,-715.537852,0.000153,2]
[420598091,1776297051357,-715.537844,0.000153,2]
[420598092,1776297051366,-151.0,0.000153,2]
[420598093,1776297051375,-151.0,0.000153,2]
[420598094,1776297051391,-321.68208,0.000153,2]
[420598095,1776297051400,-321.68208,0.000153,2]
[420598096,1776297051410,-7000.0,0.000153,5]
[420598097,1776297051419,-321.68208,0.000153,2]
[420598098,1776297051429,-321.68207,0.000153,2]
[420598099,1776297051438,-234.822704,0.000153,2]
[420598100,1776297051447,-234.822704,0.000153,2]
[420598101,1776297051456,-234.822704,0.000153,2]
[420598102,1776297051465,-234.8227,0.000153,2]
[420598103,1776297051475,-307.425473,0.000153,2]
[420598104,1776297051484,-307.425473,0.000153,2]
[420598105,1776297051493,-307.425473,0.000153,2]
[420598106,1776297051503,-307.425475,0.000153,2]
[420598107,1776297051512,-173.0,0.000153,2]
[420598108,1776297051521,-173.0,0.000153,2]
[420598109,1776297051530,-175.93560842,0.000153,2]
[420598110,1776297051539,-623.938897,0.000153,2]
[420598111,1776297051549,-623.938897,0.000153,2]
[420598112,1776297051559,-623.938897,0.000153,2]
[420598113,1776297051568,-209.622494,0.000153,2]
[420598114,1776297051578,-623.938897,0.000153,2]
[420598115,1776297051587,-209.622494,0.000153,2]
[420598116,1776297051596,-209.622494,0.000153,2]
[420598117,1776297051606,-500.0,0.00015342,2]
[420598118,1776297051615,-209.622494,0.00015342,2]
[420598119,1776297051624,-209.622494,0.00015342,2]
[420598120,1776297051634,-209.622494,0.00015342,2]
[420598121,1776297051643,-2000.0,0.00015342,2]
[420598122,1776297051652,-2000.0,0.00015342,2]
[420598123,1776297051661,-505.909543,0.00015342,2]
[420598124,1776297051670,-878.0,0.00015368,2]
[420598125,1776297051680,-623.938897,0.00015368,2]
[420598126,1776297051689,-623.938897,0.00015368,2]
[420598127,1776297051698,-623.938897,0.00015368,2]
[420598128,1776297051708,-623.938903,0.00015368,2]
[420598129,1776297051717,-1400.0,0.000154,5]
[420598130,1776297051726,-500.0,0.00015404,2]
[420598131,1776297051736,-162.0,0.0001542,2]
[420598132,1776297051747,-2815.0,0.0001542,2]
[420598133,1776297051756,-2258.0,0.0001545,2]
[420598134,1776297051766,-150.0,0.00015456,2]
[420598135,1776297051775,-321.0,0.0001546,2]
[420598136,1776297051784,-150.0,0.0001546,2]
[420598137,1776297051794,-150.0,0.0001546,2]
[420598138,1776297051803,-150.0,0.0001546,2]
[420598139,1776297051812,-150.0,0.0001546,2]
[420598140,1776297051821,-200.0,0.0001546,2]
[420598141,1776297051831,-150.0,0.00015461,2]
[420598142,1776297051840,-178.0,0.0001547,2]
[420598143,1776297051849,-666.0,0.00015499,2]
[420598144,1776297051858,-300.0,0.00015499,2]
[420598145,1776297051868,-500.0,0.000155,2]
[420598146,1776297051877,-500.0,0.000155,2]
[420598147,1776297051886,-500.0,0.000155,2]
[420598148,1776297051895,-500.0,0.000155,2]
[420598149,1776297051904,-500.0,0.000155,2]
[420598150,1776297051914,-500.0,0.000155,2]
[420598151,1776297051923,-500.0,0.000155,2]
[420598152,1776297051934,-500.0,0.000155,2]
[420598153,1776297051943,-500.0,0.000155,2]
[420598154,1776297051952,-500.0,0.000155,2]
[420598155,1776297051962,-500.0,0.000155,2]
[420598156,1776297051971,-500.0,0.000155,2]
[420598157,1776297051980,-500.0,0.000155,2]
[420598158,1776297051990,-500.0,0.000155,2]
[420598159,1776297052000,-500.0,0.000155,2]
[420598160,1776297052010,-500.0,0.000155,2]
[420598161,1776297052019,-500.0,0.000155,2]
[420598162,1776297052029,-310.64,0.000155,2]
[420598163,1776297052039,-500.0,0.000155,2]
[420598164,1776297052050,-500.0,0.000155,2]
[420598165,1776297052059,-500.0,0.000155,2]
[420598166,1776297052069,-500.0,0.000155,2]
[420598167,1776297052079,-500.0,0.000155,2]
[420598168,1776297052089,-500.0,0.000155,2]
[420598169,1776297052098,-500.0,0.000155,2]
[420598170,1776297052108,-500.0,0.000155,2]
[420598171,1776297052118,-500.0,0.000155,2]
[420598172,1776297052128,-500.0,0.000155,2]
[420598173,1776297052137,-500.0,0.000155,2]
[420598174,1776297052147,-500.0,0.000155,2]
[420598175,1776297052157,-500.0,0.000155,2]
[420598176,1776297052167,-500.0,0.000155,2]
[420598177,1776297052178,-500.0,0.000155,2]
[420598178,1776297052187,-500.0,0.000155,2]
[420598179,1776297052198,-500.0,0.000155,2]
[420598180,1776297052209,-500.0,0.000155,2]
[420598181,1776297052219,-500.0,0.000155,2]
[420598182,1776297052228,-500.0,0.000155,2]
[420598183,1776297052238,-500.0,0.000155,2]
[420598184,1776297052247,-500.0,0.000155,2]
[420598185,1776297052257,-500.0,0.000155,2]
[420598186,1776297052267,-500.0,0.000155,2]
[420598187,1776297052276,-500.0,0.000155,2]
[420598188,1776297052286,-500.0,0.000155,2]
[420598189,1776297052295,-83.16125607,0.000155,2]
[420598190,1776297052318,-300.0,0.000155,2]
[420598191,1776297052851,-803.7343424,0.0001132,2]
[420598192,1776297056053,-1669.2656576,0.0001132,2]
[420598193,1776297056063,-285.96468224,0.00013698,2]
[420598194,1776297056072,-1702.76966443,0.0001432,2]
[420598195,1776297056092,-770.23033557,0.0001432,2]
[420598196,1776297056103,-209.622494,0.00014655,2]
[420598197,1776297056112,-209.622494,0.000153,2]
[420598198,1776297056122,-209.622484,0.00015342,2]
[420598199,1776297056132,-116.83874393,0.000155,2]
[420598200,1776297056142,-500.0,0.000155,2]
[420598201,1776297056152,-500.0,0.000155,2]
[420598202,1776297056161,-185.51105058,0.000155,2]
[420598203,1776297056173,-314.48894942,0.000155,2]
[420598204,1776297056183,-500.0,0.000155,2]
[420598205,1776297056192,-500.0,0.000155,2]
[420598206,1776297056202,-500.0,0.000155,2]
[420598207,1776297056211,-500.0,0.000155,2]
[420598208,1776297056221,-500.0,0.000155,2]
[420598209,1776297056230,-500.0,0.000155,2]
[420598210,1776297056240,-500.0,0.000155,2]
[420598211,1776297056249,-500.0,0.000155,2]
[420598212,1776297056259,-500.0,0.000155,2]
[420598213,1776297056268,-500.0,0.000155,2]
[420598214,1776297056278,-500.0,0.000155,2]
[420598215,1776297056287,-500.0,0.000155,2]
[420598216,1776297056296,-500.0,0.000155,2]
[420598217,1776297056307,-500.0,0.000155,2]
[420598218,1776297056316,-500.0,0.000155,2]
[420598219,1776297056326,-500.0,0.000155,2]
[420598220,1776297056335,-0.97464132,0.000155,2]
[420598221,1776297056470,-499.02535868,0.000155,2]
[420598222,1776297056479,-500.0,0.000155,2]
[420598223,1776297056488,-500.0,0.000155,2]
[420598224,1776297056498,-385.89496308,0.000155,2]
[420598225,1776297056526,-114.10503692,0.000155,2]
[420598226,1776297056535,-500.0,0.000155,2]
[420598227,1776297056545,-500.0,0.000155,2]
[420598228,1776297056554,-500.0,0.000155,2]
[420598229,1776297056563,-500.0,0.000155,2]
[420598230,1776297056573,-500.0,0.000155,2]
[420598231,1776297056582,-500.0,0.000155,2]
[420598232,1776297056591,-500.0,0.000155,2]
[420598233,1776297056601,-500.0,0.000155,2]
[420598234,1776297056610,-500.0,0.000155,2]
[420598235,1776297056619,-500.0,0.000155,2]
[420598236,1776297056628,-500.0,0.000155,2]
[420598237,1776297056638,-500.0,0.000155,2]
[420598238,1776297056647,-500.0,0.000155,2]
[420598239,1776297056656,-500.0,0.000155,2]
[420598240,1776297056666,-500.0,0.000155,2]
[420598241,1776297056675,-500.0,0.000155,2]
[420598242,1776297056685,-500.0,0.000155,2]
[420598243,1776297056694,-500.0,0.000155,2]
[420598244,1776297056704,-36.62472529,0.000155,2]
[420598245,1776297056716,-495.31527471,0.000155,2]
[420598246,1776297056725,-1400.0,0.000155,5]
[420598247,1776297056734,-4000.0,0.00015507,2]
[420598248,1776297056744,-150.0,0.00015507,2]
[420598249,1776297056753,-150.0,0.00015507,2]
[420598250,1776297056762,-150.0,0.00015507,2]
[420598251,1776297056771,-150.0,0.00015507,2]
[420598252,1776297056781,-279.0,0.00015507,2]
[420598253,1776297056790,-1000.0,0.00015518,2]
[420598254,1776297056800,-150.0,0.00015569,2]
[420598255,1776297056809,-925.58023369,0.00015573,2]
[420598256,1776297056819,-775.47832561,0.00015581,2]
[420598257,1776297056828,-1000.0,0.00015582,2]
[420598258,1776297056837,-764.29482285,0.000156,2]
[420598259,1776297056846,-1400.0,0.000156,5]
[420598260,1776297056856,-1000.0,0.00015625,2]
[420598261,1776297056865,-1000.0,0.00015651,2]
[420598262,1776297056875,-150.0,0.00015661,2]
[420598263,1776297056885,-250.0,0.00015678,2]
[420598264,1776297056895,-250.0,0.00015678,2]
[420598265,1776297056904,-250.0,0.00015678,2]
[420598266,1776297056914,-250.0,0.00015678,2]
[420598267,1776297056924,-250.0,0.00015678,2]
[420598268,1776297056934,-250.0,0.00015678,2]
[420598269,1776297056943,-250.0,0.00015678,2]
[420598270,1776297056954,-310.0,0.00015678,2]
[420598271,1776297056964,-500.0,0.00015678,2]
[420598272,1776297056974,-519.690895,0.00015693,2]
[420598273,1776297056983,-150.0,0.00015695,2]
[420598274,1776297056993,-2000.0,0.000157,2]
[420598275,1776297057003,-150.0,0.000157,2]
[420598276,1776297057013,-150.0,0.000157,2]
[420598277,1776297057022,-150.0,0.000157,2]
[420598278,1776297057032,-150.0,0.000157,2]
[420598279,1776297057041,-150.0,0.000157,2]
[420598280,1776297057051,-150.0,0.000157,2]
[420598281,1776297057060,-150.0,0.000157,2]
[420598282,1776297057070,-1400.0,0.000157,5]
[420598283,1776297057080,-1000.0,0.00015704,2]
[420598284,1776297057089,-350.0,0.00015721,2]
[420598285,1776297057099,-187.21890698,0.00015726,2]
[420598286,1776297057108,-1465.99,0.00015753,2]
[420598287,1776297057117,-350.0,0.00015769,2]
[420598288,1776297057127,-1010.94513983,0.00015782,2]
[420598289,1776297057143,-448.87113101,0.00015782,2]
[420598290,1776297093593,-200.0,8.621e-05,2]
[420598292,1776297137104,-519.0,8.621e-05,3]
[420598293,1776297214853,230.01,0.00013833,30]
[420598294,1776297214970,-493.0,8.621e-05,3]
[420598295,1776297215212,460.03,0.00014677,30]
[420598296,1776297215562,690.04,0.00015521,30]
[420598297,1776297215885,920.06,0.00016365,30]
[420598300,1776297598202,200.74,0.00013606,30]
[420598301,1776297598608,401.48,0.00014436,30]
[420598302,1776297598963,602.22,0.00015267,30]
[420598303,1776297599368,802.96,0.00016097,30]
[420598308,1776297782398,175.19,0.00013815,30]
[420598309,1776297782728,350.38,0.00014658,30]
[420598310,1776297783325,525.57,0.00015501,30]
[420598311,1776297783672,700.76,0.00016344,30]
[420598312,1776297796013,3665.07,8.521e-05,2]
[420598313,1776297867775,152.89,0.00013806,30]
[420598314,1776297867909,305.79,0.00014649,30]
[420598315,1776297867995,458.68,0.00015491,30]
[420598316,1776297868065,611.58,0.00016334,30]
[420598322,1776298049687,150.0,0.00013776,30]
[420598323,1776298049863,266.87,0.00014616,30]
[420598324,1776298049978,400.3,0.00015457,30]
[420598325,1776298050103,533.74,0.00016298,30]
[420598327,1776298092224,10000.0,0.000165,60]
[420598328,1776298108056,4622.48,0.000165,30]
[420598332,1776298232352,-1263.52532736,8.805e-05,2]
[420598333,1776298232364,-472.0526679,8.805e-05,2]
[420598334,1776298232375,-187.04670474,8.805e-05,2]
[420598335,1776298232385,-250.0,9.686e-05,2]
[420598336,1776298232395,-151.67306975,0.0001,2]
[420598337,1776298232405,-135.03022051,0.0001,2]
[420598338,1776298232433,-64.96977949,0.0001,2]
[420598339,1776298232442,-500.0,0.0001,2]
[420598340,1776298232452,-151.0,0.0001,2]
[420598341,1776298232462,-115.67979922,0.0001,2]
[420598342,1776298232473,-384.32020078,0.0001,2]
[420598343,1776298232482,-151.0,0.0001,2]
[420598344,1776298232494,-500.0,0.0001,2]
[420598345,1776298232503,-151.0,0.0001,2]
[420598346,1776298232513,-500.0,0.0001,2]
[420598347,1776298232523,-151.0,0.0001,2]
[420598357,1776298233200,-500.0,0.0001,2]
[420598358,1776298233210,-151.0,0.0001,2]
[420598359,1776298233225,-500.0,0.0001,2]
[420598360,1776298233235,-151.0,0.0001,2]
[420598361,1776298233245,-500.0,0.0001,2]
[420598362,1776298233255,-151.0,0.0001,2]
[420598363,1776298233265,-500.0,0.0001,2]
[420598364,1776298233275,-151.0,0.0001,2]
[420598365,1776298233285,-500.0,0.0001,2]
[420598366,1776298233295,-500.0,0.0001,2]
[420598367,1776298233304,-151.0,0.0001,2]
[420598368,1776298233314,-500.0,0.0001,2]
[420598369,1776298233323,-151.0,0.0001,2]
[420598370,1776298233333,-151.0,0.0001,2]
[420598371,1776298233343,-500.0,0.0001,2]
[420598372,1776298233353,-500.0,0.0001,2]
[420598373,1776298233363,-500.0,0.0001,2]
[420598374,1776298233374,-500.0,0.0001,2]
[420598375,1776298233383,-500.0,0.0001,2]
[420598376,1776298233393,-500.0,0.0001,2]
[420598377,1776298233404,-500.0,0.0001,2]
[420598378,1776298233414,-500.0,0.0001,2]
[420598379,1776298233423,-500.0,0.0001,2]
[420598380,1776298233433,-500.0,0.0001,2]
[420598381,1776298233442,-500.0,0.0001,2]
[420598382,1776298233452,-151.0,0.0001,2]
[420598383,1776298233462,-151.0,0.0001,2]
[420598384,1776298233472,-151.0,0.0001,2]
[420598385,1776298233482,-151.0,0.0001,2]
[420598386,1776298233492,-151.0,0.0001,2]
[420598387,1776298233502,-151.0,0.0001,2]
[420598388,1776298233512,-151.0,0.0001,2]
[420598389,1776298233522,-151.0,0.0001,2]
[420598390,1776298233532,-151.0,0.0001,2]
[420598391,1776298233542,-151.0,0.0001,2]
[420598392,1776298233551,-151.0,0.0001,2]
[420598393,1776298233561,-151.0,0.0001,2]
[420598394,1776298233571,-1386.78395259,0.0001,2]
[420598395,1776298233581,-151.0,0.0001,2]
[420598396,1776298233591,-151.0,0.0001,2]
[420598397,1776298233600,-151.0,0.0001,2]
[420598398,1776298233610,-151.0,0.0001,2]
[420598399,1776298233620,-151.0,0.0001,2]
[420598400,1776298233633,-151.0,0.0001,2]
[420598401,1776298233643,-151.0,0.0001,2]
[420598402,1776298233653,-151.0,0.0001,2]
[420598403,1776298233663,-151.0,0.0001,2]
[420598404,1776298233673,-2306.22403014,0.000102,2]
[420598405,1776298233682,-175.3,0.00010638,2]
[420598406,1776298233692,-500.0,0.00010673,2]
[420598407,1776298233702,-73140.61426031,0.000107,2]
[420598408,1776298233716,-696.20302202,0.000107,2]
[420598409,1776298233731,-550.23948953,0.000107,2]
[420598410,1776298233794,-699.49483532,0.000107,2]
[420598414,1776298238472,-600.0,0.000107,2]
[420598415,1776298238531,-944.32999927,0.000107,2]
[420598416,1776298238543,-8794.02795487,0.000107,2]
[420598417,1776298238554,-898.06061579,0.000107,2]
[420598418,1776298238565,-1188.74622491,0.000107,2]
[420598419,1776298238595,-807.96035193,0.000107,2]
[420598420,1776298238605,-500.0,0.00010958,2]
[420598421,1776298238614,-41.94675836,0.00010958,3]